Workbook

Sheet Info
B2: Funder Data Extraction tool
B4: About this tool | C4: The data extraction tool is used to automatically collate the information from all the completed calculators. In addition, the extraction tool has a number of different analysis options to allow funders to interrogate the performance of all the providers they have contracted.
C6: For further guidance on the operation of this tool, please consult the funder guidance document. | K6: http://data.london.gov.uk/dataset/lepr-esf-2014-20.
B8: Master Dataset
B9: Contains the extracted performance rating data. It also contains the control to extract the data from calculators.
B11: Grant Analysis
B12: Allow the user to summarise the performance of all contractors from a specific grant/grant.
B14: Project Analysis
B15: Allows the user to compare the performance of different contacts filtered by a range of criteria.
B17: Satisfaction Analysis
B18: Allows the analysis of the particpant satisfaction data for a funder overall or a specific grant.
B20: Final Results
B21: Produces the summary ratings table for publishing on the website.
B23: Temporal Analysis
B24: Review the performance of a contractors across time and calculate a lifetime/performance to date rating.
B26: Grant_Performance
B27: Contains the extract grant performance information need for the lifetime performance calculations
B29: Satisfaction
B30: Contains the extracted participant satisfaction data to be used in Satisfaction analysis

Sheet Master Dataset
A1: Info
B2: Master Dataset
B3: Contains the extracted performance rating data. It also contains the control to extract the data from calculators.
B8: Source File | C8: Funder | D8: Rating Year | E8: Provider | F8: Grant Name | G8: Prime/Sub | H8: Stars | I8: Comments | J8: Total % | K8: Delivery | L8: Diversity | M8: Conversion | N8: Self Assessment | O8: Participant Satisfaction | P8: Grant Compliance | Q8: Target Group | R8: Primary Outcome | S8: No. of starters | T8: Year of Delivery | U8: Pan London | V8: Barking & Dagenham | W8: Barnet | X8: Bexley | Y8: Brent | Z8: Bromley | AA8: Camden | AB8: City of London | AC8: Croydon | AD8: Ealing | AE8: Enfield | AF8: Greenwich | AG8: Hackney | AH8: Hammersmith & Fulham | AI8: Haringey | AJ8: Harrow | AK8: Havering | AL8: Hillingdon | AM8: Hounslow | AN8: Islington | AO8: Kensington & Chelsea | AP8: Kingston | AQ8: Lambeth | AR8: Lewisham | AS8: Merton | AT8: Newham | AU8: Redbridge | AV8: Richmond | AW8: Southwark | AX8: Sutton | AY8: Tower Hamlets | AZ8: Waltham Forest | BA8: Wandsworth | BB8: Westminster | BC8: Funding Round and Spec

Sheet Grant Analysis
A1: Info
B2: Grant Analysis
B3: Allow the user to summarise the performance of all contractors from a specific grant/grant.
B26: Provider | C26: Stars | D26: Total % | E26: Delivery | F26: Diversity | G26: Conversion | H26: Self Assessment | I26: Participant Satisfaction | J26: Grant Compliance
B27: Provider 4 | C27: 3 | D27: 86.35229779 | E27: 60 | F27: 0 | G27: 0 | H27: 9 | I27: 7.752297794 | J27: 9.6
B28: Maximum | C28: 4 | D28: 100 | E28: 60 | F28: 0 | G28: 12 | H28: 9 | I28: 9 | J28: 10

Sheet Project Analysis
A1: Info
B2: Project Analysis
B3: Allows the user to compare the performance of different contacts filtered by a range of criteria. | E3: Location Filters
E4: All | F4: Clear Selection
B5: Funder | C5: All | E5: Pan London
B6: Prime/Sub | C6: All | E6: Barking & Dagenham | F6: City of London | G6: Hammersmith & Fulham | H6: Islington | I6: Newham | J6: Waltham Forest
B7: Stars | C7: All | E7: Barnet | F7: Croydon | G7: Haringey | H7: Kensington & Chelsea | I7: Redbridge | J7: Wandsworth
B8: Rating Year | C8: 2017/18 | E8: Bexley | F8: Ealing | G8: Harrow | H8: Kingston | I8: Richmond | J8: Westminster
B9: Target Group | C9: All | E9: Brent | F9: Enfield | G9: Havering | H9: Lambeth | I9: Southwark | Q9: Pan London
B10: Sort by: | C10: Stars | E10: Bromley | F10: Greenwich | G10: Hillingdon | H10: Lewisham | I10: Sutton | Q10: Barking & Dagenham | R10: Hackney | S10: Lewisham
E11: Camden | F11: Hackney | G11: Hounslow | H11: Merton | I11: Tower Hamlets | Q11: Barnet | R11: Hammersmith & Fulham | S11: Merton
Q12: Bexley | R12: Haringey | S12: Newham
Q13: Brent | R13: Harrow | S13: Redbridge
Q14: Bromley | R14: Havering | S14: Richmond
Q15: Camden | R15: Hillingdon | S15: Southwark
Q16: City of London | R16: Hounslow | S16: Sutton
Q17: Croydon | R17: Islington | S17: Tower Hamlets
P18: None | Q18: Ealing | R18: Kensington & Chelsea | S18: Waltham Forest
Q19: Enfield | R19: Kingston | S19: Wandsworth
Q20: Greenwich | R20: Lambeth | S20: Westminster
B31: Grant Name | C31: Provider | D31: Stars | E31: Total % | F31: Delivery | G31: Diversity | H31: Conversion | I31: Self Assessment | J31: Participant Satisfaction | K31: Grant Compliance
B32: disadvantaged young people | C32: Provider 2 | D32: 4 | E32: 91.10741107 | F32: 52.6 | G32: 0 | H32: 12 | I32: 8.795454545 | J32: 8.711956522 | K32: 9
B33: Maximum | D33: 4 | E33: 100 | F33: 60 | G33: 0 | H33: 12 | I33: 9 | J33: 9 | K33: 10

Sheet Satisfaction Analysis
A1: Info
B2: Satisfaction Analysis
B3: Allows the analysis of the participant satisfaction data for a funder overall or a specific grant.
B4: Funder | C4: All
B5: Rating Year | C5: 2018/19
B6: Grant Name | C6: Digital Skills
E7: Very positive | F7: Positive | G7: Neutral | H7: Negative | I7: Very negative | J7: Total | K7: % of Maximum Score
E8: 4 | F8: 3 | G8: 2 | H8: 1 | I8: 0
C9: Q1. What do you think of your advisor's/trainer's?
C10: a) Knowledge of the subject/activity | D10: 1a | E10: 100 | F10: 4 | G10: 4 | H10: 0 | I10: 0 | J10: 108 | K10: =(E10*$E$8+F10*$F$8+G10*$G$8+H10)/(J10*4) -> 0.9722222222
C11: b) Understanding of your needs | D11: 1b | E11: 90 | F11: 10 | G11: 8 | H11: 0 | I11: 0 | J11: 108 | K11: =(E11*$E$8+F11*$F$8+G11*$G$8+H11)/(J11*4) -> 0.9398148148
C12: c) Support in setting targets to help you achieve your goals | D12: 1c | E12: 98 | F12: 2 | G12: 8 | H12: 0 | I12: 0 | J12: 108 | K12: 0.9583333333
C13: d) Help with finding other support for you | D13: 1d | E13: 102 | F13: 6 | G13: 0 | H13: 0 | I13: 0 | J13: 108 | K13: 0.9861111111
C14: e) Support with helping you to plan your next steps | D14: 1e | E14: 101 | F14: 7 | G14: 0 | H14: 0 | I14: 0 | J14: 108 | K14: 0.9837962963
C16: Q2. How has this activity made a difference to you?
C17: a) Knowledge of the subject/activity | D17: 2a | E17: 96 | F17: 4 | G17: 8 | H17: 0 | I17: 0 | J17: 108 | K17: 0.9537037037
C18: b) Understanding of your needs | D18: 2b | E18: 84 | F18: 16 | G18: 8 | H18: 0 | I18: 0 | J18: 108 | K18: 0.9259259259
C19: c) Support in setting targets to help you achieve your goals | D19: 2c | E19: 51 | F19: 51 | G19: 6 | H19: 0 | I19: 0 | J19: 108 | K19: 0.8541666667
C20: d) Help with finding other support for you | D20: 2d | E20: 108 | F20: 0 | G20: 0 | H20: 0 | I20: 0 | J20: 108 | K20: 1
C21: e) Support with helping you to plan your next steps | D21: 2e | E21: 47 | F21: 33 | G21: 28 | H21: 0 | I21: 0 | J21: 108 | K21: 0.7939814815
C23: Q3. Overall, how satisfied or dissatisfied were you with the activity? | D23: 3 | E23: 100 | F23: 2 | G23: 6 | H23: 0 | I23: 0 | J23: 111 | K23: 0.9414414414

Sheet Final Results
A1: Info
B2: Final Results
B3: Produces the summary ratings table for publishing on the website.
B5: Funder | C5: All
B6: Rating Year | C6: 2019/20
B8: All Grants (lead grant holders) : 2019/20 Employability Performance Rating
F9: No stars awarded
B13: All Grants (sub grant holders) : 2019/20 Employability Performance Rating
F14: No stars awarded
C15: Provider 4 (Housing Academy)
C16: 1

Sheet Temporal Analysis
A1: Info
B2: Temporal Analysis
B3: Review the performance of a contractors across time and calculate a lifetime/performance to date rating.
B6: Provider | C6: Provider 4
B7: Grant Name | C7: Housing Academy
B25: Rating Year | C25: Stars | D25: Total % | E25: Delivery | F25: Diversity | G25: Conversion | H25: Self Assessment | I25: Participant Satisfaction | J25: Grant Compliance
B26: 2019/20 | C26: 3 | D26: 86.35229779 | E26: 60 | F26: 0 | G26: 0 | H26: 9 | I26: 7.752297794 | J26: 9.6
B27: Performance to date | C27: 3 | D27: 86.35229779 | E27: 60 | F27: 0 | G27: 0 | H27: 9 | I27: 7.752297794 | J27: 9.6
B28: Maximum | C28: 4 | D28: 100 | E28: 60 | F28: 0 | G28: 12 | H28: 9 | I28: 9 | J28: 10

Sheet Grant Performance
A1: Info
B2: Grant performance
B3: Contains the extract grant performance information need for the lifetime performance calculations
B5: Source File | C5: Funder | D5: Rating Year | E5: Provider | F5: Grant Name | G5: Prime/Sub | H5: Number of Targets | I5: Diversity Targets? | J5: Outcome_1_Type | K5: Outcome_1_Profile | L5: Outcome_1_BAME | M5: Outcome_1_Disability | N5: Outcome_1_Women | O5: Outcome_2_Type | P5: Outcome_2_Profile | Q5: Outcome_2_BAME | R5: Outcome_2_Disability | S5: Outcome_2_Women | T5: Outcome_3_Type | U5: Outcome_3_Profile | V5: Outcome_3_BAME | W5: Outcome_3_Disability | X5: Outcome_3_Women | Y5: Outcome_4_Type | Z5: Outcome_4_Profile | AA5: Outcome_4_BAME | AB5: Outcome_4_Disability | AC5: Outcome_4_Women | AD5: Outcome_5_Type | AE5: Outcome_5_Profile | AF5: Outcome_5_BAME | AG5: Outcome_5_Disability | AH5: Outcome_5_Women | AI5: Outcome_6_Type | AJ5: Outcome_6_Profile | AK5: Outcome_6_BAME | AL5: Outcome_6_Disability | AM5: Outcome_6_Women | AN5: Target_1_Profile | AO5: Target_1_BAME | AP5: Target_1_Disability | AQ5: Target_1_Women | AR5: Target_2_Profile | AS5: Target_2_BAME | AT5: Target_2_Disability | AU5: Target_2_Women | AV5: Target_3_Profile | AW5: Target_3_BAME | AX5: Target_3_Disability | AY5: Target_3_Women | AZ5: Target_4_Profile | BA5: Target_4_BAME | BB5: Target_4_Disability | BC5: Target_4_Women | BD5: Target_5_Profile | BE5: Target_5_BAME | BF5: Target_5_Disability | BG5: Target_5_Women | BH5: Target_6_Profile | BI5: Target_6_BAME | BJ5: Target_6_Disability | BK5: Target_6_Women | BL5: Life_Target_1_Type | BM5: Life_Target_1_Profile | BN5: Life_Target_1_BAME | BO5: Life_Target_1_Disability | BP5: Life_Target_1_Women | BQ5: Life_Target_2_Type | BR5: Life_Target_2_Profile | BS5: Life_Target_2_BAME | BT5: Life_Target_2_Disability | BU5: Life_Target_2_Women | BV5: Life_Target_3_Type | BW5: Life_Target_3_Profile | BX5: Life_Target_3_BAME | BY5: Life_Target_3_Disability | BZ5: Life_Target_3_Women | CA5: Life_Target_4_Type | CB5: Life_Target_4_Profile | CC5: Life_Target_4_BAME | CD5: Life_Target_4_Disability | CE5: Life_Target_4_Women | CF5: Life_Target_5_Type | CG5: Life_Target_5_Profile | CH5: Life_Target_5_BAME | CI5: Life_Target_5_Disability | CJ5: Life_Target_5_Women | CK5: Life_Target_6_Type | CL5: Life_Target_6_Profile | CM5: Life_Target_6_BAME | CN5: Life_Target_6_Disability | CO5: Life_Target_6_Women

Sheet Satisfaction
A1: Info
B2: Satisfaction Data
B3: Contains the extracted participant satisfaction data to be used in Satisfaction analysis
B5: Source File | C5: Funder | D5: Rating Year | E5: Provider | F5: Grant Name | G5: Prime/Sub | H5: 1a_4 | I5: 1b_4 | J5: 1c_4 | K5: 1d_4 | L5: 1e_4 | M5: 2a_4 | N5: 2b_4 | O5: 2c_4 | P5: 2d_4 | Q5: 2e_4 | R5: 2f_4 | S5: 3_4 | T5: 1a_3 | U5: 1b_3 | V5: 1c_3 | W5: 1d_3 | X5: 1e_3 | Y5: 2a_3 | Z5: 2b_3 | AA5: 2c_3 | AB5: 2d_3 | AC5: 2e_3 | AD5: 2f_3 | AE5: 3_3 | AF5: 1a_2 | AG5: 1b_2 | AH5: 1c_2 | AI5: 1d_2 | AJ5: 1e_2 | AK5: 2a_2 | AL5: 2b_2 | AM5: 2c_2 | AN5: 2d_2 | AO5: 2e_2 | AP5: 2f_2 | AQ5: 3_2 | AR5: 1a_1 | AS5: 1b_1 | AT5: 1c_1 | AU5: 1d_1 | AV5: 1e_1 | AW5: 2a_1 | AX5: 2b_1 | AY5: 2c_1 | AZ5: 2d_1 | BA5: 2e_1 | BB5: 2f_1 | BC5: 3_1 | BD5: 1a_0 | BE5: 1b_0 | BF5: 1c_0 | BG5: 1d_0 | BH5: 1e_0 | BI5: 2a_0 | BJ5: 2b_0 | BK5: 2c_0 | BL5: 2d_0 | BM5: 2e_0 | BN5: 2f_0 | BO5: 3_0

Sheet Results to date
B2: Grant Name | C2: ='Temporal Analysis'!C7 -> Housing Academy
B3: Provider | C3: ='Temporal Analysis'!C6 -> Provider 4
B5: KPA | C5: Indicator | G5: Star rating points | H5: Total available | J5: Star rating guidance | P5: KPA | Q5: Indicator | U5: Star rating points | V5: Total available
B6: Grant performance | C6: Delivery against grant targets | G6: =SUM(INDEX(LifePerformTable,0,6)) -> 60 | H6: =SUM(INDEX(LifePerformTable,0,5)) -> 60 | J6: 4 stars | K6: 87.5 | L6: - | M6: 100 | N6: points | P6: Grant performance | Q6: Delivery against grant targets | U6: =SUM(INDEX(LifetimePerformTable,0,6)) -> 25.7 | V6: =SUM(INDEX(LifePerformTable,0,5)) -> 60
C7: Delivery against grant diversity targets | G7: =SUM(INDEX(LifeBAMETable,0,5),INDEX(LifeDisabilityTable,0,5),INDEX(LifeWomenTable,0,5)) -> 0 | H7: =SUM(INDEX(LifeBAMETable,0,4),INDEX(LifeDisabilityTable,0,4),INDEX(LifeWomenTable,0,4)) -> 0 | J7: 3 stars | K7: 75 | L7: - | M7: 87.4 | N7: points | Q7: Delivery against grant diversity targets | U7: =SUM(INDEX(LifetimeBAMETable,0,5),INDEX(LifetimeDisabilityTable,0,5),INDEX(LifetimeWomenTable,0,5)) -> 3.95959596 | V7: =SUM(INDEX(LifeBAMETable,0,4),INDEX(LifeDisabilityTable,0,4),INDEX(LifeWomenTable,0,4)) -> 0
B8: Quality | C8: Conversion rate for positive outcomes | G8: =J26 -> 0 | H8: 12 | J8: 2 stars | K8: 62.5 | L8: - | M8: 74.9 | N8: points | P8: Quality | Q8: Conversion rate for positive outcomes | U8: =AF26 -> 0 | V8: 12
C9: Self assessment of quality | G9: =QSAFScore -> 9 | H9: 9 | J9: 1 star | K9: 40 | L9: - | M9: 62.4 | N9: points | Q9: Self assessment of quality | U9: =QSAFScore -> 9 | V9: 9
C10: Customer satisfaction | G10: =IFERROR(E35/(D35*4)*H10,0) -> 7.752297794 | H10: 9 | J10: 0 star | K10: 0 | L10: - | M10: 39.9 | N10: points | Q10: Customer satisfaction | U10: =IFERROR(S35/(R35*4)*V10,0) -> 0 | V10: 9
B11: Grant compliance | C11: Grant compliance | G11: =ComplianceScore -> 9.6 | H11: 10 | P11: Grant compliance | Q11: Grant compliance | U11: =ComplianceScore -> 9.6 | V11: 10
B12: Total Star Rating points | G12: =SUM(G6:G11) -> 86.35229779 | H12: 100 | P12: Total Star Rating points | U12: =SUM(U6:U11) -> 48.25959596 | V12: 100
B13: Stars | G13: 3 | H13: 4 | P13: Stars | U13: 2 | V13: 4
B14: Grant Performance (Sum of annual targets) | X14: Grant Performance (Lifetime Targets)
C15: Delivery against grant targets | H15: BAME | M15: Disability | R15: Women | Y15: Delivery against grant targets | AD15: BAME | AI15: Disability | AN15: Women
B17: Target | C17: Life Target | D17: Life Outcome | E17: % Delivery | F17: Total pts available | G17: Star rating points | H17: Life Target | I17: Life Outcome | J17: % Delivery | K17: Total pts available | L17: Star rating points | M17: Life Target | N17: Life Outcome | O17: % Delivery | P17: Total pts available | Q17: Star rating points | R17: Life Target | S17: Life Outcome | T17: % Delivery | U17: Total pts available | V17: Star rating points | X17: Target | Y17: Life Target | Z17: Life Outcome | AA17: % Delivery | AB17: Total pts available | AC17: Star rating points | AD17: Life Target | AE17: Life Outcome | AF17: % Delivery | AG17: Total pts available | AH17: Star rating points | AI17: Life Target | AJ17: Life Outcome | AK17: % Delivery | AL17: Total pts available | AM17: Star rating points | AN17: Life Target | AO17: Life Outcome | AP17: % Delivery | AQ17: Total pts available | AR17: Star rating points
B18: Entry to employment | C18: 130 | D18: 136 | E18: 1.046153846 | F18: 30 | G18: 30 | X18: Entry to employment | Y18: 200 | Z18: 108 | AA18: 0.54 | AB18: 24 | AC18: 12.96 | AD18: 50 | AE18: 24 | AF18: 0.4444444444 | AG18: 1.333333333 | AH18: 0.5925925926 | AI18: 50 | AJ18: 24 | AK18: 0.4444444444 | AL18: 1.333333333 | AM18: 0.5925925926 | AN18: 100 | AO18: 48 | AP18: 0.4444444444 | AQ18: 1.333333333 | AR18: 0.5925925926
B19: Starts | C19: 100 | D19: 106 | E19: 1.06 | F19: 30 | G19: 30 | X19: Starts | Y19: 150 | Z19: 88 | AA19: 0.5866666667 | AB19: 12 | AC19: 7.04 | AD19: 50 | AE19: 18 | AF19: 0.4090909091 | AG19: 1.333333333 | AH19: 0.5454545455 | AI19: 50 | AJ19: 18 | AK19: 0.4090909091 | AL19: 1.333333333 | AM19: 0.5454545455 | AN19: 50 | AO19: 36 | AP19: 0.8181818182 | AQ19: 1.333333333 | AR19: 1.090909091
X20: 26 weeks | Y20: 200 | Z20: 95 | AA20: 0.475 | AB20: 12 | AC20: 5.7 | AE20: 20 | AF20: 0 | AG20: 1.333333333 | AH20: 0 | AJ20: 21 | AK20: 0 | AL20: 1.333333333 | AM20: 0 | AO20: 32 | AP20: 0 | AQ20: 1.333333333 | AR20: 0
B24: Conversion (Sum of annual targets) | X24: Conversion (Lifetime Targets)
B25: Primary Outcome | C25: Target number of starts | D25: Actual number of starts | E25: Target Outcomes | F25: Actual Outcomes | G25: Target conversion rate | H25: Actual conversion rate | I25: Actual rate minus target rate | J25: Total Star Rating points | X25: Primary Outcome | Y25: Target number of starts | Z25: Actual number of starts | AA25: Target Outcomes | AB25: Actual Outcomes | AC25: Target conversion rate | AD25: Actual conversion rate | AE25: Actual rate minus target rate | AF25: Total Star Rating points
B26: Entry into employment | C26: =VLOOKUP("Starts",LifePerformTable,2,FALSE) -> 100 | D26: =VLOOKUP("Starts",LifePerformTable,3,FALSE) -> 106 | E26: =VLOOKUP(INDEX(LifePerformTable,2,1),LifePerformTable,2,FALSE) -> 130 | F26: =VLOOKUP(INDEX(LifePerformTable,2,1),LifePerformTable,3,FALSE) -> 136 | G26: =IF(C26<>0,E26/C26,0) -> 1.3 | H26: =IF(D26<>0,F26/D26,0) -> 1.283018868 | I26: =H26-G26 -> -0.01698113208 | J26: =IF(I26>0,IF(I26<0.15,I26*100/1.25,H8),0) -> 0 | X26: Entry into employment | Y26: =VLOOKUP("Starts",LifetimePerformTable,2,FALSE) -> 150 | Z26: =VLOOKUP("Starts",LifetimePerformTable,3,FALSE) -> 88 | AA26: =VLOOKUP(INDEX(LifetimePerformTable,2,1),LifetimePerformTable,2,FALSE) -> 200 | AB26: =VLOOKUP(INDEX(LifetimePerformTable,2,1),LifetimePerformTable,3,FALSE) -> 108 | AC26: =IF(Y26<>0,AA26/Y26,0) -> 1.333333333 | AD26: =IF(Z26<>0,AB26/Z26,0) -> 1.227272727 | AE26: =AD26-AC26 -> -0.1060606061 | AF26: =IF(AE26>0,IF(AE26<0.15,AE26*100/1.25,AD8),0) -> 0
B28: Client Satisfaction
B29: Responses | C29: Points per response | D29: No of responses | E29: Points Scored
B30: Very positive | C30: 4 | D30: 1068 | E30: =D30*C30 -> 4272
B31: Positive | C31: 3 | D31: 303 | E31: =D31*C31 -> 909
B32: Neutral | C32: 2 | D32: 195 | E32: 390
B33: Negative | C33: 1 | D33: 52 | E33: 52
B34: Very negative | C34: 0 | D34: 14 | E34: 0
B35: Total | D35: =SUM(D30:D34) -> 1632 | E35: =IF(F26<D35,SUM(E30:E34),0) -> 5623
B38: Self Assessment
B39: Year | C39: Score
B40: 2019/20 | C40: 9
B41: Average | C41: 9
B44: Grant Compliance
B45: Year | C45: Score
B46: 2019/20 | C46: 9.6
B47: Average | C47: 9.6

Sheet Control Variables
B2: YearRange | D2: NormalMaximum | E2: NoDiversityMaximum | F2: GrantNames | G2: FunderNames | H2: ProviderNames | I2: TargetGroupNames | J2: Locations | K2: DiversityType | L2: ProviderNames2 | M2: ProviderSpecificNames | N2: GrantNamesALL
B3: 2015/16 | D3: 4 | E3: 4 | F3: 16-24 to employment | G3: All | H3: All | I3: All | J3: All | K3: BAME | L3: Provider 1 | M3: Housing Academy | N3: All
B4: 2016/17 | D4: 100 | E4: 100 | F4: Digital Skills | G4: Big Lottery | H4: Provider 1 | I4: 16-24 year group | J4: Pan London | K4: Disability | L4: Provider 2 | N4: 16-24 to employment
B5: 2017/18 | D5: 48 | E5: 60 | F5: disadvantaged young people | G5: GLA | H5: Provider 2 | I5: disadvantaged young people | J5: Barking & Dagenham | K5: Women | L5: Provider 3 | N5: Digital Skills
B6: 2018/19 | D6: 12 | E6: 0 | F6: Housing Academy | H6: Provider 3 | I6: Secondary school pupils | J6: Barnet | L6: Provider 4 | N6: disadvantaged young people
B7: 2019/20 | D7: 12 | E7: 12 | H7: Provider 4 | J7: Bexley | N7: Housing Academy
B8: 2020/21 | D8: 9 | E8: 9 | J8: Brent
D9: 9 | E9: 9 | J9: Bromley
D10: 10 | E10: 10 | J10: Camden
J11: City of London
J12: Croydon
J13: Ealing
J14: Enfield
J15: Greenwich
J16: Hackney
J17: Hammersmith & Fulham
J18: Haringey
J19: Harrow
J20: Havering
J21: Hillingdon
J22: Hounslow
J23: Islington
J24: Kensington & Chelsea
J25: Kingston
J26: Lambeth
J27: Lewisham
J28: Merton
J29: Newham
J30: Redbridge
J31: Richmond
J32: Southwark
J33: Sutton
J34: Tower Hamlets
J35: Waltham Forest
J36: Wandsworth
J37: Westminster
